bitfinex-derivatives/quotes_BTCF0:USTF0_20250823
["timestamp","ask_amount","ask_price","bid_price","bid_amount"]
[1755981312581,1.8294524,115330.0,115320.0,0.30725229]
[1755981313490,1.8294524,115330.0,115320.0,0.30825229]
[1755981314084,1.8294524,115330.0,115320.0,0.31125229]
[1755981314997,1.8294524,115330.0,115320.0,0.41809028]
[1755981319792,1.8294524,115330.0,115320.0,0.34695028]
[1755981319993,1.8294524,115330.0,115320.0,0.18877028]
[1755981320690,1.8294524,115330.0,115320.0,0.19844028]
[1755981323092,2.1902524,115330.0,115320.0,0.19844028]
[1755981325197,2.1902524,115330.0,115320.0,0.18287653]
[1755981330508,2.1902524,115330.0,115320.0,0.17320653]
[1755981331105,1.70139713,115330.0,115320.0,0.17320653]
[1755981331305,2.1902524,115330.0,115320.0,0.17320653]
[1755981337821,2.1902524,115330.0,115320.0,0.08404869]
[1755981337822,2.92910767,115330.0,115320.0,0.08404869]
[1755981338015,3.28990767,115330.0,115320.0,0.02799499]
[1755981338319,0.0867443,115310.0,115300.0,0.15618854]
[1755981338523,1.49678841,115310.0,115300.0,0.32543854]
[1755981338821,1.49678841,115310.0,115300.0,0.34201854]
[1755981339522,1.50553661,115310.0,115300.0,0.34201854]
[1755981340416,1.50553661,115310.0,115300.0,0.34601854]
[1755981340923,1.50553661,115310.0,115300.0,0.34901854]
[1755981341422,1.50553661,115310.0,115300.0,0.30216854]
[1755981341722,1.86633661,115310.0,115300.0,0.38494653]
[1755981342021,1.86633661,115310.0,115300.0,0.41706653]
[1755981343823,1.93629075,115310.0,115300.0,0.41706653]
[1755981348930,1.93629075,115310.0,115300.0,0.38494653]
[1755981349422,1.93629075,115310.0,115300.0,0.28112653]
[1755981354024,1.93629075,115310.0,115300.0,0.25706653]
[1755981355833,1.93629075,115310.0,115300.0,0.17620653]
[1755981359132,1.93629075,115310.0,115300.0,0.18614653]
[1755981359534,1.93629075,115310.0,115300.0,0.20722653]
[1755981360130,0.66215548,115310.0,115300.0,0.20722653]
[1755981360335,1.93589075,115310.0,115300.0,0.23892653]
[1755981360736,1.93589075,115310.0,115300.0,0.20722653]
[1755981362136,1.57509075,115310.0,115300.0,0.20722653]
[1755981362327,1.93589075,115310.0,115300.0,0.20722653]
[1755981362636,1.93589075,115310.0,115300.0,0.23892653]
[1755981368043,1.15101075,115310.0,115300.0,0.23892653]
[1755981368242,1.93593075,115310.0,115300.0,0.23892653]
[1755981368644,1.15101075,115310.0,115300.0,0.23892653]
[1755981368846,1.93589075,115310.0,115300.0,0.23892653]
[1755981369244,1.93589075,115310.0,115300.0,0.17655799]
[1755981370139,1.15101075,115310.0,115300.0,0.17655799]
[1755981370344,1.93589075,115310.0,115300.0,0.17655799]
[1755981371245,1.93589075,115310.0,115300.0,0.23897665]
[1755981371636,1.93589075,115310.0,115300.0,0.20727665]
[1755981379547,1.93589075,115310.0,115300.0,0.14485799]
[1755981380052,1.93589075,115310.0,115300.0,0.20728508]
[1755981388558,1.93589075,115310.0,115300.0,0.14485799]
[1755981389360,1.93589075,115310.0,115300.0,0.20729061]
[1755981395975,1.44703548,115310.0,115300.0,0.20729061]
[1755981396273,1.93589075,115310.0,115300.0,0.20729061]
[1755981396473,1.93589075,115310.0,115300.0,0.14485799]
[1755981403078,1.93589075,115310.0,115300.0,0.20728993]
[1755981404479,1.93589075,115310.0,115300.0,0.14485799]
[1755981412387,1.93589075,115310.0,115300.0,0.20729008]
[1755981413289,1.93589075,115310.0,115300.0,0.14485799]
[1755981414188,1.93589075,115310.0,115300.0,0.20729006]
[1755981415076,1.57509075,115310.0,115300.0,0.20729006]
[1755981415273,1.93589075,115310.0,115300.0,0.20729006]
[1755981418588,1.57509075,115310.0,115300.0,0.20729006]
[1755981418887,1.93589075,115310.0,115300.0,0.20729006]
[1755981430092,1.93589075,115310.0,115300.0,0.14485799]
[1755981431802,1.57509075,115310.0,115300.0,0.14485799]
[1755981431998,1.93589075,115310.0,115300.0,0.14485799]
[1755981437107,1.93589075,115310.0,115300.0,0.22289876]
[1755981437299,1.93589075,115310.0,115300.0,0.14485799]
[1755981437812,1.93589075,115310.0,115300.0,0.12377799]
[1755981438002,1.93589075,115310.0,115300.0,0.17627213]
[1755981438199,2.18589075,115310.0,115300.0,0.17627213]
[1755981439506,2.18589075,115310.0,115300.0,0.17527213]
[1755981439707,2.18589075,115310.0,115300.0,0.17227213]
[1755981439905,2.18589075,115310.0,115300.0,0.17427213]
[1755981441831,2.18589075,115310.0,115300.0,0.17227213]
[1755981442028,2.18689075,115310.0,115300.0,0.16927213]
[1755981444629,2.18689075,115310.0,115300.0,0.10683799]
[1755981446530,2.54769075,115310.0,115300.0,0.10683799]
[1755981449734,2.56852212,115310.0,115300.0,0.10683799]
[1755981449929,2.31852212,115310.0,115300.0,0.10683799]
[1755981451233,2.29769075,115310.0,115300.0,0.10683799]
[1755981455332,2.54769075,115310.0,115300.0,0.10683799]
[1755981455535,0.0959215,115300.0,115290.0,0.06243414]
[1755981455736,1.33380305,115300.0,115290.0,0.06243414]
[1755981455931,1.33380305,115300.0,115280.0,0.0707]
[1755981455932,0.086759,115290.0,115280.0,0.17861414]
[1755981456138,1.80295143,115290.0,115280.0,0.26861414]
[1755981457539,1.80295143,115290.0,115280.0,0.17861414]
[1755981457941,1.80295143,115290.0,115280.0,0.17961414]
[1755981458639,1.80295143,115290.0,115280.0,0.18161414]
[1755981458842,1.80295143,115290.0,115280.0,0.28845213]
[1755981465552,2.2918067,115290.0,115280.0,0.28845213]
[1755981465853,1.80295143,115290.0,115280.0,0.28845213]
[1755981468952,1.80295143,115290.0,115280.0,0.25023213]
[1755981469159,1.80295143,115290.0,115280.0,0.20263213]
[1755981469358,2.2918067,115290.0,115280.0,0.20263213]
[1755981469846,2.2918067,115290.0,115280.0,0.23511213]
[1755981470359,2.2918067,115290.0,115280.0,0.23411213]
[1755981470550,2.2918067,115290.0,115280.0,0.23211213]
[1755981470849,2.2928067,115290.0,115280.0,0.23211213]
[1755981471654,1.80395143,115290.0,115280.0,0.23211213]
[1755981474059,2.2928067,115290.0,115280.0,0.23211213]
[1755981475756,2.2928067,115290.0,115280.0,0.19963213]
[1755981476258,2.2928067,115290.0,115280.0,0.23211213]
[1755981476554,2.2928067,115290.0,115280.0,0.19963213]
[1755981477653,1.9320067,115290.0,115280.0,0.19963213]
[1755981477853,2.2928067,115290.0,115280.0,0.19963213]
[1755981482961,2.2928067,115290.0,115280.0,0.16927213]
[1755981484861,2.2928067,115290.0,115280.0,0.20114213]
[1755981485066,2.2928067,115290.0,115280.0,0.23421213]
[1755981485371,0.126384,115270.0,115260.0,0.21316708]
[1755981485560,1.78005623,115270.0,115260.0,0.22806708]
[1755981485759,1.78005623,115270.0,115260.0,0.11881]
[1755981486456,1.78005623,115270.0,115260.0,0.0949]
[1755981487268,1.78005623,115270.0,115260.0,0.0969]
[1755981487567,1.78005623,115270.0,115260.0,0.0979]
[1755981488061,1.78005623,115270.0,115260.0,0.03487]
[1755981488268,1.78005623,115270.0,115260.0,0.01223]
[1755981488668,1.78005623,115270.0,115260.0,0.11906799]
[1755981491769,1.78005623,115270.0,115260.0,0.10983799]
[1755981496567,1.78005623,115270.0,115260.0,0.07474589]
[1755981497567,0.1263988,115250.0,115240.0,0.03187]
[1755981497776,2.26924335,115250.0,115240.0,0.05187]
[1755981498074,3.91936335,115250.0,115240.0,0.02923]
[1755981498778,3.91936335,115250.0,115240.0,0.03623]
[1755981499377,4.28016335,115250.0,115240.0,0.03623]
[1755981500272,4.28516335,115250.0,115240.0,0.01323]
[1755981500472,4.28516335,115250.0,115240.0,0.004]
[1755981500976,4.28716335,115250.0,115240.0,0.10783799]
[1755981501371,4.35780653,115250.0,115240.0,0.10783799]
[1755981509999,4.37897527,115250.0,115240.0,0.10783799]
[1755981513201,3.59421527,115250.0,115240.0,0.10783799]
[1755981513397,4.38357527,115250.0,115240.0,0.10783799]
[1755981515105,2.61650473,115250.0,115240.0,0.10783799]
[1755981515303,4.38349527,115250.0,115240.0,0.10783799]
[1755981521398,4.38349527,115250.0,115240.0,0.08190839]
[1755981521700,4.38349527,115250.0,115240.0,9e-08]
[1755981522903,4.36232653,115250.0,115240.0,9e-08]
[1755981523103,4.38354998,115250.0,115240.0,9e-08]
[1755981525205,3.40583944,115250.0,115240.0,9e-08]
[1755981525398,4.38354998,115250.0,115240.0,9e-08]
[1755981525808,3.66194998,115250.0,115240.0,9e-08]
[1755981526012,4.38354998,115250.0,115240.0,9e-08]
[1755981534610,4.39082998,115250.0,115240.0,9e-08]
[1755981534911,4.39078998,115250.0,115240.0,9e-08]
[1755981535114,3.59426998,115250.0,115240.0,9e-08]
[1755981535414,4.39086998,115250.0,115240.0,9e-08]
[1755981537916,4.53496998,115250.0,115240.0,9e-08]
[1755981548527,3.81336998,115250.0,115240.0,9e-08]
[1755981548730,4.53496998,115250.0,115240.0,9e-08]
[1755981552527,3.81336998,115250.0,115240.0,9e-08]
[1755981552728,4.53496998,115250.0,115240.0,9e-08]
[1755981555630,3.81336998,115250.0,115240.0,9e-08]
[1755981555932,4.53496998,115250.0,115240.0,9e-08]
[1755981592463,4.53496998,115250.0,115240.0,0.00945009]
[1755981597166,3.81336998,115250.0,115240.0,0.00945009]
[1755981597468,4.53496998,115250.0,115240.0,0.00945009]
[1755981600166,4.53477069,115250.0,115240.0,0.00945009]
[1755981601664,0.1114857,115240.0,115230.0,0.10909]
[1755981601868,2.63205363,115240.0,115230.0,0.11869]
[1755981602068,0.86078309,115240.0,115230.0,0.11869]
[1755981602379,2.63357363,115240.0,115230.0,0.11869]
[1755981602972,1.84249363,115240.0,115230.0,0.11869]
[1755981603169,2.63757363,115240.0,115230.0,0.11869]
[1755981604874,2.64608268,115240.0,115230.0,0.22552799]
[1755981616374,4.29680268,115240.0,115230.0,0.22552799]
[1755981617176,4.44090268,115240.0,115230.0,0.22552799]
[1755981617569,4.44090268,115240.0,115230.0,0.20061799]
[1755981618174,4.45995882,115240.0,115230.0,0.20061799]
[1755981621371,3.66487882,115240.0,115230.0,0.20061799]
[1755981621572,4.45883882,115240.0,115230.0,0.20061799]
[1755981624576,4.45883882,115240.0,115230.0,0.13791799]
[1755981624767,4.45883882,115240.0,115230.0,0.11643799]
[1755981626578,4.81963882,115240.0,115230.0,0.11643799]
[1755981630077,4.81963882,115240.0,115230.0,0.17896214]
[1755981630282,4.81963882,115240.0,115230.0,0.11643799]
[1755981637690,4.81963882,115240.0,115230.0,0.17896214]
[1755981637890,4.81963882,115240.0,115230.0,0.11643799]
[1755981639292,4.81871882,115240.0,115230.0,0.11643799]
[1755981644495,4.81871882,115240.0,115230.0,0.17896214]
[1755981645398,4.81871882,115240.0,115230.0,0.11643799]
[1755981645892,4.81871882,115240.0,115230.0,0.13915799]
[1755981648395,4.81871882,115240.0,115230.0,0.20168214]
[1755981649096,4.81787882,115240.0,115230.0,0.20168214]
[1755981650097,4.81787882,115240.0,115230.0,0.13915799]
[1755981658706,4.81787882,115240.0,115230.0,0.11643799]
[1755981659303,4.81787882,115240.0,115230.0,0.10683799]
[1755981660308,4.81787882,115240.0,115230.0,0.16936214]
[1755981661209,4.81787882,115240.0,115230.0,0.10683799]
[1755981667022,3.04796828,115240.0,115230.0,0.16318799]
[1755981667319,4.81647882,115240.0,115230.0,0.12843799]
[1755981668322,4.81647882,115240.0,115230.0,0.13746799]
[1755981669624,4.02567882,115240.0,115230.0,0.13746799]
[1755981669823,4.81767882,115240.0,115230.0,0.13746799]
[1755981670125,4.81767882,115240.0,115230.0,0.11586799]
[1755981672628,4.67357882,115240.0,115230.0,0.11586799]
[1755981680329,4.67369882,115240.0,115230.0,0.11586799]
[1755981682733,4.81779882,115240.0,115230.0,0.11586799]
[1755981683035,4.81779882,115240.0,115230.0,0.13746799]
[1755981685639,4.81930966,115240.0,115230.0,0.13746799]
[1755981686835,3.84159912,115240.0,115230.0,0.13746799]
[1755981687032,4.81930966,115240.0,115230.0,0.19999214]
[1755981688137,4.81930966,115240.0,115230.0,0.17839214]
[1755981690039,4.02718966,115240.0,115230.0,0.17839214]
[1755981690338,4.81854966,115240.0,115230.0,0.17839214]
[1755981690939,4.81854966,115240.0,115230.0,0.11586799]
[1755981696642,4.02718966,115240.0,115230.0,0.11586799]
[1755981696842,4.81802966,115240.0,115230.0,0.11586799]
[1755981697744,4.02718966,115240.0,115230.0,0.11586799]
[1755981698045,4.81798966,115240.0,115230.0,0.11586799]
[1755981700048,4.02718966,115240.0,115230.0,0.11586799]
[1755981700247,4.81774966,115240.0,115230.0,0.11586799]
[1755981700743,4.02718966,115240.0,115230.0,0.16995799]
[1755981700949,4.02718966,115240.0,115230.0,0.22620799]
[1755981701250,4.81766966,115240.0,115230.0,0.22620799]
[1755981701750,4.81766966,115240.0,115230.0,0.20359799]
[1755981703754,4.81766966,115240.0,115230.0,0.18926799]
[1755981704545,4.81766966,115240.0,115230.0,0.13910799]
[1755981707154,4.02718966,115240.0,115230.0,0.17274799]
[1755981707355,4.81738966,115240.0,115230.0,0.17274799]
[1755981709052,4.81738966,115240.0,115230.0,0.13910799]
[1755981710054,4.7963655,115240.0,115230.0,0.20163214]
[1755981716661,3.81865496,115240.0,115230.0,0.20163214]
[1755981716867,4.7963655,115240.0,115230.0,0.20163214]
[1755981718270,2.55025173,115240.0,115230.0,0.25591214]
[1755981718460,3.098107,115240.0,115230.0,1.32764326]
[1755981718659,2.55065164,115240.0,115230.0,1.61764326]
[1755981718860,2.55065164,115240.0,115230.0,1.69554075]
[1755981719158,2.55065164,115240.0,115230.0,1.44554075]
[1755981719462,3.03950691,115240.0,115230.0,1.44554075]
[1755981719652,3.06257691,115240.0,115230.0,1.44554075]
[1755981720054,3.05957691,115240.0,115230.0,1.44554075]
[1755981720362,3.05857691,115240.0,115230.0,1.44654075]
[1755981722763,3.06805691,115240.0,115230.0,1.44654075]
[1755981723365,2.27797691,115240.0,115230.0,1.44654075]
[1755981723564,3.06801691,115240.0,115230.0,1.53334395]
[1755981723767,2.57916164,115240.0,115230.0,1.53334395]
[1755981723964,3.06801691,115240.0,115230.0,1.53334395]
[1755981726570,3.06801691,115240.0,115230.0,1.04448868]
[1755981726866,3.06801691,115240.0,115230.0,0.95768548]
[1755981727871,3.06801691,115240.0,115230.0,1.04448868]
[1755981729570,3.06801691,115240.0,115230.0,0.95768548]
[1755981732471,3.06801691,115240.0,115230.0,0.87978799]
[1755981732871,3.06801691,115240.0,115230.0,0.96659119]
[1755981734173,3.06801691,115240.0,115230.0,0.87978799]
[1755981734570,3.06801691,115240.0,115230.0,0.96659119]
[1755981735875,3.06801691,115240.0,115230.0,1.02893136]
[1755981736375,3.06801691,115240.0,115230.0,0.96659119]
[1755981740276,3.06801691,115240.0,115230.0,1.02894459]
[1755981740665,3.04896077,115240.0,115230.0,1.02894459]
[1755981740869,3.04896077,115240.0,115230.0,0.96659119]
[1755981744478,3.04896077,115240.0,115230.0,1.04448868]
[1755981747682,1.39824077,115240.0,115230.0,0.96659119]
[1755981749780,1.39924077,115240.0,115230.0,0.96659119]
[1755981750182,1.39924077,115240.0,115230.0,0.96559119]
[1755981750373,1.39924077,115240.0,115230.0,1.04348868]
[1755981750574,1.39924077,115240.0,115230.0,0.95668548]
[1755981750884,2.24889604,115240.0,115230.0,0.47473548]
[1755981751081,1.88809604,115240.0,115230.0,0.39683799]
[1755981751286,1.39924077,115240.0,115230.0,0.39683799]
[1755981751580,1.76004077,115240.0,115230.0,0.39683799]
[1755981751786,1.39924077,115240.0,115230.0,0.39683799]
[1755981752378,0.9349455,115240.0,115230.0,0.39683799]
[1755981752582,0.9349455,115240.0,115230.0,0.42849799]
[1755981752775,1.42380077,115240.0,115230.0,0.42849799]
[1755981752977,1.42380077,115240.0,115230.0,0.46070799]
[1755981755985,1.42380077,115240.0,115230.0,0.53860548]
[1755981758585,1.42380077,115240.0,115230.0,0.55239548]
[1755981760791,1.42380077,115240.0,115230.0,0.47449799]
[1755981762490,0.9349455,115240.0,115230.0,0.47449799]
[1755981762691,1.42380077,115240.0,115230.0,0.47449799]
[1755981764792,1.42380077,115240.0,115230.0,0.5526173]
[1755981765387,1.42380077,115240.0,115230.0,0.5764873]
[1755981766588,1.42380077,115240.0,115230.0,0.49836799]
[1755981766789,1.42280077,115240.0,115230.0,0.49836799]
[1755981767896,1.42280077,115240.0,115230.0,0.85916799]
[1755981768397,1.42280077,115240.0,115230.0,0.87578799]
[1755981768899,1.42280077,115240.0,115230.0,0.51498799]
[1755981770098,1.42280077,115240.0,115230.0,0.60179139]
[1755981773512,1.42280077,115240.0,115230.0,0.71104847]
[1755981774512,1.42280077,115240.0,115230.0,0.60179139]
[1755981774712,1.42280077,115240.0,115230.0,0.71104847]
[1755981774915,0.9339455,115240.0,115230.0,0.71104847]
[1755981775115,1.42280077,115240.0,115230.0,0.71104847]
[1755981775914,1.42280077,115240.0,115230.0,0.67991599]
[1755981776314,0.1449055,115240.0,115230.0,0.67991599]
[1755981776509,0.9339055,115240.0,115230.0,1.04071599]
[1755981776708,1.42276077,115240.0,115230.0,1.04071599]
[1755981778020,0.9339055,115240.0,115230.0,1.04071599]
[1755981778210,1.42276077,115240.0,115230.0,1.04071599]
[1755981779105,1.42276077,115240.0,115230.0,0.67991599]
[1755981779310,1.42276077,115240.0,115230.0,1.04071599]
[1755981782119,0.63376077,115240.0,115230.0,1.04071599]
[1755981782417,1.42276077,115240.0,115230.0,1.04071599]
[1755981783220,1.42276077,115240.0,115230.0,0.67991599]
[1755981785222,1.42276077,115240.0,115230.0,0.60179139]
[1755981785721,1.42276077,115240.0,115230.0,0.96259139]
[1755981786123,1.42276077,115240.0,115230.0,0.60179139]
[1755981786421,1.42276077,115240.0,115230.0,0.96259139]
[1755981786822,1.42276077,115240.0,115230.0,1.04072969]
[1755981787722,1.42276077,115240.0,115230.0,0.67992969]
[1755981788124,0.9339055,115240.0,115230.0,0.60179139]
[1755981788325,1.42276077,115240.0,115230.0,0.60179139]
[1755981789526,1.42276077,115240.0,115230.0,0.96259139]
[1755981790226,1.42276077,115240.0,115230.0,1.04072998]
[1755981795033,1.42276077,115240.0,115230.0,0.67992998]
[1755981795634,1.42276077,115240.0,115230.0,1.04072998]
[1755981797938,1.42276077,115240.0,115230.0,0.67992998]
[1755981798439,1.42276077,115240.0,115230.0,1.04072998]
[1755981799541,1.42276077,115240.0,115230.0,0.67992998]
[1755981799838,1.42276077,115240.0,115230.0,1.04072998]
[1755981800437,1.42276077,115240.0,115230.0,0.67992998]
[1755981805742,1.42276077,115240.0,115230.0,0.60179139]
[1755981806142,1.42276077,115240.0,115230.0,0.96259139]
[1755981808446,0.63376077,115240.0,115230.0,0.96259139]
[1755981808646,1.42268077,115240.0,115230.0,0.96259139]
[1755981810949,1.42268077,115240.0,115230.0,1.04073189]
[1755981812049,1.42268077,115240.0,115230.0,0.67993189]
[1755981813455,0.63376077,115240.0,115230.0,0.67993189]
[1755981813658,1.42264077,115240.0,115230.0,1.04073189]
[1755981815554,0.1449055,115240.0,115230.0,1.04073189]
[1755981815755,0.63376077,115240.0,115230.0,1.04073189]
[1755981815955,1.42260077,115240.0,115230.0,1.04073189]
[1755981817449,0.1449055,115240.0,115230.0,1.04073189]
[1755981817656,1.42260077,115240.0,115230.0,1.04073189]
[1755981818156,0.9337455,115240.0,115230.0,1.04073189]
[1755981818359,1.42260077,115240.0,115230.0,1.04073189]
[1755981833975,1.42260077,115240.0,115230.0,0.67993189]
[1755981835676,1.42260077,115240.0,115230.0,0.69748152]
[1755981837477,1.42260077,115240.0,115230.0,1.05828152]
[1755981838076,1.42260077,115240.0,115230.0,0.69748152]
[1755981845084,0.63376077,115240.0,115230.0,0.69748152]
[1755981845382,1.42252077,115240.0,115230.0,0.69748152]
[1755981848889,0.9336655,115240.0,115230.0,0.69748152]
[1755981849078,1.42252077,115240.0,115230.0,0.69748152]
[1755981854384,1.42252077,115240.0,115230.0,0.61934102]
[1755981854579,1.42252077,115240.0,115230.0,0.53253762]
[1755981855783,1.42252077,115240.0,115230.0,0.59505108]
[1755981861088,0.9336655,115240.0,115230.0,0.59505108]
[1755981861388,1.42252077,115240.0,115230.0,0.59505108]
[1755981861987,1.42252077,115240.0,115230.0,0.61067945]
[1755981862374,1.78332077,115240.0,115230.0,0.50855941]
[1755981862978,1.78332077,115240.0,115230.0,0.54270941]
[1755981864687,1.78332077,115240.0,115230.0,0.55683941]
[1755981864986,1.42252077,115240.0,115230.0,0.55683941]
[1755981865186,1.78332077,115240.0,115230.0,0.55683941]
[1755981865695,1.42252077,115240.0,115230.0,0.49432762]
[1755981865988,1.78332077,115240.0,115230.0,0.57246945]
[1755981869190,1.78332077,115240.0,115230.0,0.52418945]
[1755981869794,1.78332077,115240.0,115230.0,0.55724945]
[1755981870595,1.78332077,115240.0,115230.0,0.57217945]
[1755981870894,1.78332077,115240.0,115230.0,0.59540945]
[1755981871300,1.42252077,115240.0,115230.0,0.59540945]
[1755981875801,0.9336655,115240.0,115230.0,0.59540945]
[1755981876002,1.42252077,115240.0,115230.0,0.59540945]
[1755981876502,1.42252077,115240.0,115230.0,0.61138945]
[1755981883008,1.78332077,115240.0,115230.0,0.61138945]
[1755981883815,2.27217604,115240.0,115230.0,0.61138945]
[1755981884009,2.27217604,115240.0,115230.0,0.53324762]
[1755981885014,1.2944655,115240.0,115230.0,0.53324762]
[1755981885210,2.27217604,115240.0,115230.0,0.53324762]
[1755981890316,2.27217604,115240.0,115230.0,0.61138945]
[1755981893015,1.91137604,115240.0,115230.0,0.61138945]
[1755981893215,2.27217604,115240.0,115230.0,0.61138945]
[1755981896614,2.27217604,115240.0,115230.0,0.57832945]
[1755981896819,2.27217604,115240.0,115230.0,0.54016945]
[1755981897218,2.27217604,115240.0,115230.0,0.57322945]
[1755981897414,2.27217604,115240.0,115230.0,0.58815945]
[1755981898118,2.27217604,115240.0,115230.0,0.61163945]
[1755981898315,2.27217604,115240.0,115230.0,0.53349762]
[1755981899521,2.27217604,115240.0,115230.0,0.51001762]
[1755981899719,2.27217604,115240.0,115230.0,0.52453313]
[1755981899912,2.2736868,115240.0,115230.0,0.50855313]
[1755981900914,2.2736868,115240.0,115230.0,0.54080313]
[1755981902023,2.2736868,115240.0,115230.0,0.55456313]
[1755981902820,2.4177868,115240.0,115230.0,0.55456313]
[1755981903126,2.2736868,115240.0,115230.0,0.55456313]
[1755981903922,2.2736868,115240.0,115230.0,0.49205762]
[1755981904226,2.2736868,115240.0,115230.0,0.44604762]
[1755981904828,2.2736868,115240.0,115230.0,0.47829762]
[1755981907238,2.2736868,115240.0,115230.0,0.44604762]
[1755981907541,2.2736868,115240.0,115230.0,0.42397762]
[1755981907839,2.5236868,115240.0,115230.0,0.13683799]
[1755981911044,2.5236868,115240.0,115230.0,0.19933342]
[1755981912444,2.1628868,115240.0,115230.0,0.19933342]
[1755981912746,2.5236868,115240.0,115230.0,0.19933342]
[1755981912949,2.6678868,115240.0,115230.0,0.19933342]
[1755981917455,2.3070868,115240.0,115230.0,0.19933342]
[1755981917647,2.6678868,115240.0,115230.0,0.19933342]
[1755981919140,1.8791268,115240.0,115230.0,0.19933342]
[1755981919337,2.6675268,115240.0,115230.0,0.19933342]
[1755981920150,2.6675268,115240.0,115230.0,0.13683799]
[1755981921651,1.6291268,115240.0,115230.0,0.13683799]
[1755981921841,2.4175268,115240.0,115230.0,0.13683799]
[1755981923449,1.6291268,115240.0,115230.0,0.13683799]
[1755981923647,2.4174868,115240.0,115230.0,0.13683799]
[1755981923842,1.64934967,115240.0,115230.0,0.13683799]
[1755981924042,2.43770967,115240.0,115230.0,0.20022799]
[1755981924245,2.43770967,115240.0,115230.0,0.25338799]
[1755981924450,2.43770967,115240.0,115230.0,0.22338799]
[1755981924750,2.43770967,115240.0,115230.0,0.53338799]
[1755981926652,2.43770967,115240.0,115230.0,0.29022799]
[1755981930555,2.43770967,115240.0,115230.0,0.41022799]
[1755981930948,2.43766967,115240.0,115230.0,0.41022799]
[1755981931150,2.4174468,115240.0,115230.0,0.41022799]
[1755981932661,2.0566468,115240.0,115230.0,0.41022799]
[1755981932861,2.4174468,115240.0,115230.0,0.41022799]
[1755981933255,1.6291268,115240.0,115230.0,0.41022799]
[1755981933457,2.4174468,115240.0,115230.0,0.41022799]
[1755981937363,2.4174468,115240.0,115230.0,0.47272342]
[1755981938757,4.0681668,115240.0,115230.0,0.47272342]
[1755981939162,3.09045626,115240.0,115230.0,0.47272342]
[1755981939356,4.0681668,115240.0,115230.0,0.47272342]
[1755981940252,4.0681668,115240.0,115230.0,0.44047342]
[1755981942064,3.9239668,115240.0,115230.0,0.44047342]
[1755981943364,3.9239668,115240.0,115230.0,0.47519342]
[1755981950476,3.1356468,115240.0,115230.0,0.47519342]
[1755981950768,3.9238068,115240.0,115230.0,0.47519342]
[1755981951080,3.9238068,115240.0,115230.0,0.44519342]
[1755981952275,4.0680068,115240.0,115230.0,0.44519342]
[1755981957388,4.08763717,115240.0,115230.0,0.38269799]
[1755981958182,4.08763717,115240.0,115230.0,0.34797799]
[1755981963591,4.0680068,115240.0,115230.0,0.41047342]
[1755981970198,4.08763725,115240.0,115230.0,0.41047342]
[1755981970387,4.08763725,115240.0,115230.0,0.34797799]
[1755981973099,3.72683725,115240.0,115230.0,0.34797799]
[1755981973300,4.08763725,115240.0,115230.0,0.34797799]
[1755981976695,4.08739725,115240.0,115230.0,0.34797799]
[1755981977197,4.0677668,115240.0,115230.0,0.34797799]
[1755981977398,4.08739929,115240.0,115230.0,0.34797799]
[1755981979998,4.08739929,115240.0,115230.0,0.41047342]
[1755981980200,4.0677668,115240.0,115230.0,0.41047342]
[1755981985705,2.32172696,115240.0,115230.0,0.44256342]
[1755981985895,4.0872375,115240.0,115230.0,0.44256342]
[1755981989206,4.0872375,115240.0,115230.0,0.45680342]
[1755981992607,4.10687126,115240.0,115230.0,0.39430799]
[1755981993008,4.10687126,115240.0,115230.0,0.38006799]
[1755981996004,3.31907126,115240.0,115230.0,0.38006799]
[1755981996212,4.10679126,115240.0,115230.0,0.38006799]
[1755981999710,4.10675126,115240.0,115230.0,0.43459799]
[1755982001616,4.0871175,115240.0,115230.0,0.49709342]
[1755982002318,3.10940696,115240.0,115230.0,0.49709342]
[1755982002617,4.0871175,115240.0,115230.0,0.49709342]
[1755982004513,3.10940696,115240.0,115230.0,0.49709342]
[1755982004710,4.0871175,115240.0,115230.0,0.49709342]
[1755982004911,4.106756,115240.0,115230.0,0.39556799]
[1755982006317,4.106756,115240.0,115230.0,0.40980799]
[1755982007915,3.319076,115240.0,115230.0,0.43718799]
[1755982008117,4.106676,115240.0,115230.0,0.43718799]
[1755982010218,4.0870375,115240.0,115230.0,0.49968342]
[1755982011522,4.0870375,115240.0,115230.0,0.47489342]
[1755982012521,4.0870375,115240.0,115230.0,0.46065342]
[1755982020227,4.10667634,115240.0,115230.0,0.46065342]
[1755982020925,4.10667634,115240.0,115230.0,0.39815799]
[1755982021318,4.10667634,115240.0,115230.0,0.38265799]
[1755982024928,2.68602107,115240.0,115230.0,0.43543799]
[1755982025125,3.45386223,115240.0,115230.0,0.49793342]
[1755982025532,2.64679153,115240.0,115230.0,0.49793342]
[1755982025735,1.78765626,115240.0,115230.0,1.32359209]
[1755982026032,3.06399153,115240.0,115230.0,1.62189666]
[1755982026530,3.06399153,115240.0,115230.0,1.13304139]
[1755982026729,3.06399153,115240.0,115230.0,1.68435032]
[1755982027026,2.57513626,115240.0,115230.0,1.70003849]
[1755982027224,3.06399153,115240.0,115230.0,1.70003849]
[1755982027427,1.74002626,115240.0,115230.0,1.63053317]
[1755982027629,2.4392,115240.0,115230.0,1.708675]
[1755982027925,2.43916,115240.0,115230.0,1.708675]
[1755982028328,2.43916,115240.0,115230.0,1.72641913]
[1755982030035,2.5259559,115240.0,115230.0,1.72641913]
[1755982030329,2.5259559,115240.0,115230.0,1.6482773]
[1755982030529,2.5259559,115240.0,115230.0,1.75753438]
[1755982031436,2.5259559,115240.0,115230.0,1.6482773]
[1755982032330,2.43916,115240.0,115230.0,1.6482773]
[1755982033030,1.65172,115240.0,115230.0,1.72614992]
[1755982033237,2.43912,115240.0,115230.0,1.72714992]
[1755982033536,2.43912,115240.0,115230.0,1.75853438]
[1755982034027,2.43812,115240.0,115230.0,1.75953438]
[1755982034229,1.65072,115240.0,115230.0,1.75953438]
[1755982034522,2.43804,115240.0,115230.0,1.75953438]
[1755982034726,2.43804,115240.0,115230.0,1.6502773]
[1755982035329,1.65072,115240.0,115230.0,1.6502773]
[1755982035526,2.43804,115240.0,115230.0,1.6502773]
[1755982039442,1.65072,115240.0,115230.0,1.6502773]
[1755982039743,2.43796,115240.0,115230.0,1.6502773]
[1755982040242,2.46186,115240.0,115230.0,1.6502773]
[1755982041352,1.67462,115240.0,115230.0,1.6502773]
[1755982041543,2.46186,115240.0,115230.0,1.6502773]
[1755982043543,2.46178,115240.0,115230.0,1.6502773]
[1755982045447,0.83591,115240.0,115230.0,1.6502773]
[1755982045848,0.04875,115240.0,115230.0,1.6502773]
[1755982046050,0.83591,115240.0,115230.0,1.6502773]
[1755982047847,0.83591,115240.0,115230.0,1.75953438]
[1755982049943,0.83591,115240.0,115230.0,1.50953438]
[1755982050851,0.84539,115240.0,115230.0,1.50953438]
[1755982052744,0.84539,115240.0,115230.0,1.87033438]
[1755982054754,0.05823,115240.0,115230.0,1.87033438]
[1755982054954,0.84527,115240.0,115230.0,1.87033438]
[1755982055255,0.84527,115240.0,115230.0,1.7610773]
[1755982055457,0.84527,115240.0,115230.0,1.87020663]
[1755982055857,0.84527,115240.0,115230.0,1.7610773]
[1755982056460,0.72802747,115240.0,115230.0,1.7610773]